fUSD/lending_fUSD_20260526
["ID","MTS","AMOUNT","RATE_DAILY","PERIOD"]
[423017685,1779753039000,-402.5,0.000291,2]
[423017686,1779753039000,-2884.75459676,0.00029172,2]
[423017693,1779753039000,-500.0,0.00029172,2]
[423017687,1779753039000,-500.0,0.00029172,2]
[423017688,1779753039000,-500.0,0.00029172,2]
[423017691,1779753039000,-500.0,0.00029172,2]
[423017689,1779753039000,-500.0,0.00029172,2]
[423017690,1779753039000,-500.0,0.00029172,2]
[423017723,1779753039000,-1000.0,0.0002945,2]
[423017738,1779753039000,-800.0,0.00029497,2]
[423017729,1779753039000,-800.0,0.00029497,2]
[423017754,1779753039000,-800.0,0.00029497,2]
[423017755,1779753039000,-800.0,0.00029497,2]
[423017758,1779753039000,-200.0,0.00029497,2]
[423017768,1779753039000,-200.0,0.00029497,2]
[423017769,1779753039000,-200.0,0.00029497,2]
[423017771,1779753039000,-200.0,0.00029497,2]
[423017770,1779753039000,-200.0,0.00029497,2]
[423017766,1779753039000,-200.0,0.00029497,2]
[423017764,1779753039000,-200.0,0.00029497,2]
[423017763,1779753039000,-200.0,0.00029497,2]
[423017728,1779753039000,-500.0,0.00029496,2]
[423017772,1779753039000,-200.0,0.00029497,2]
[423017767,1779753039000,-200.0,0.00029497,2]
[423017774,1779753039000,-200.0,0.00029497,2]
[423017773,1779753039000,-200.0,0.00029497,2]
[423017786,1779753039000,-200.0,0.00029497,2]
[423017776,1779753039000,-500.0,0.00029497,2]
[423017788,1779753039000,-200.0,0.00029497,2]
[423017783,1779753039000,-200.0,0.00029497,2]
[423017785,1779753039000,-200.0,0.00029497,2]
[423017780,1779753039000,-500.0,0.00029497,2]
[423017778,1779753039000,-500.0,0.00029497,2]
[423017775,1779753039000,-500.0,0.00029497,2]
[423017787,1779753039000,-200.0,0.00029497,2]
[423017782,1779753039000,-200.0,0.00029497,2]
[423017777,1779753039000,-500.0,0.00029497,2]
[423017781,1779753039000,-516.0,0.00029497,2]
[423017784,1779753039000,-200.0,0.00029497,2]
[423017779,1779753039000,-500.0,0.00029497,2]
[423017757,1779753039000,-200.0,0.00029497,2]
[423017756,1779753039000,-200.0,0.00029497,2]
[423017765,1779753039000,-200.0,0.00029497,2]
[423017761,1779753039000,-200.0,0.00029497,2]
[423017727,1779753039000,-1000.0,0.0002945,2]
[423017731,1779753039000,-800.0,0.00029497,2]
[423017750,1779753039000,-800.0,0.00029497,2]
[423017725,1779753039000,-1000.0,0.0002945,2]
[423017724,1779753039000,-1000.0,0.0002945,2]
[423017735,1779753039000,-800.0,0.00029497,2]
[423017732,1779753039000,-800.0,0.00029497,2]
[423017734,1779753039000,-800.0,0.00029497,2]
[423017733,1779753039000,-800.0,0.00029497,2]
[423017736,1779753039000,-800.0,0.00029497,2]
[423017739,1779753039000,-800.0,0.00029497,2]
[423017749,1779753039000,-800.0,0.00029497,2]
[423017748,1779753039000,-800.0,0.00029497,2]
[423017745,1779753039000,-800.0,0.00029497,2]
[423017726,1779753039000,-1000.0,0.0002945,2]
[423017753,1779753039000,-800.0,0.00029497,2]
[423017737,1779753039000,-800.0,0.00029497,2]
[423017752,1779753039000,-800.0,0.00029497,2]
[423017762,1779753039000,-200.0,0.00029497,2]
[423017759,1779753039000,-200.0,0.00029497,2]
[423017751,1779753039000,-800.0,0.00029497,2]
[423017743,1779753039000,-800.0,0.00029497,2]
[423017760,1779753039000,-200.0,0.00029497,2]
[423017746,1779753039000,-800.0,0.00029497,2]
[423017744,1779753039000,-800.0,0.00029497,2]
[423017741,1779753039000,-800.0,0.00029497,2]
[423017740,1779753039000,-800.0,0.00029497,2]
[423017742,1779753039000,-800.0,0.00029497,2]
[423017747,1779753039000,-800.0,0.00029497,2]
[423017805,1779753040000,-200.0,0.00029497,2]
[423017803,1779753040000,-377.0,0.00029497,2]
[423017806,1779753040000,-200.0,0.00029497,2]
[423017804,1779753040000,-200.0,0.00029497,2]
[423017811,1779753040000,-200.0,0.00029497,2]
[423017808,1779753040000,-200.0,0.00029497,2]
[423017810,1779753040000,-200.0,0.00029497,2]
[423017809,1779753040000,-200.0,0.00029497,2]
[423017807,1779753040000,-200.0,0.00029497,2]
[423017802,1779753040000,-800.0,0.00029497,2]
[423017813,1779753040000,-200.0,0.00029497,2]
[423017812,1779753040000,-200.0,0.00029497,2]
[423017795,1779753040000,-200.0,0.00029497,2]
[423017800,1779753040000,-800.0,0.00029497,2]
[423017799,1779753040000,-161.0,0.00029497,2]
[423017796,1779753040000,-200.0,0.00029497,2]
[423017794,1779753040000,-200.0,0.00029497,2]
[423017798,1779753040000,-200.0,0.00029497,2]
[423017791,1779753040000,-200.0,0.00029497,2]
[423017793,1779753040000,-200.0,0.00029497,2]
[423017792,1779753040000,-200.0,0.00029497,2]
[423017790,1779753040000,-200.0,0.00029497,2]
[423017797,1779753040000,-200.0,0.00029497,2]
[423017789,1779753040000,-200.0,0.00029497,2]
[423017801,1779753040000,-800.0,0.00029497,2]
[423017815,1779753040000,-200.0,0.00029497,2]
[423017829,1779753040000,-2881.04788461,0.000295,57]
[423017817,1779753040000,-200.0,0.00029497,2]
[423017814,1779753040000,-200.0,0.00029497,2]
[423017841,1779753040000,-421.70896983,0.000295,57]
[423017839,1779753040000,-279.54379379,0.000269,2]
[423017840,1779753040000,-151.0,0.000269,2]
[423017838,1779753040000,-267.00000021,0.000269,2]
[423017831,1779753040000,-3456.06880918,0.000295,57]
[423017837,1779753040000,-3640.06108413,0.000295,57]
[423017834,1779753040000,-3062.94692159,0.000295,57]
[423017835,1779753040000,-6504.15401308,0.000295,57]
[423017836,1779753040000,-7235.11559059,0.000295,57]
[423017833,1779753040000,-165.0,0.000295,60]
[423017832,1779753040000,-150.0,0.000295,60]
[423017830,1779753040000,-2995.63024914,0.000295,57]
[423017827,1779753040000,-2175.83540962,0.000295,57]
[423017823,1779753040000,-591.88495917,0.000295,30]
[423017816,1779753040000,-200.0,0.00029497,2]
[423017818,1779753040000,-200.0,0.00029497,2]
[423017828,1779753040000,-2535.19168924,0.000295,57]
[423017825,1779753040000,-765.41045964,0.000295,57]
[423017821,1779753040000,-344.0,0.00029497,2]
[423017824,1779753040000,-154.37280946,0.000295,57]
[423017826,1779753040000,-1470.62293463,0.000295,57]
[423017822,1779753040000,-150.0,0.00029499,20]
[423017819,1779753040000,-200.0,0.00029497,2]
[423017820,1779753040000,-200.0,0.00029497,2]
[423017847,1779753041000,-151.0,0.00025,2]
[423017848,1779753041000,-652.90893104,0.00025784,2]
[423017843,1779753041000,-151.0,0.00015686,2]
[423017845,1779753041000,-157.682996,0.00020839,2]
[423017842,1779753041000,-151.0,0.00015686,2]
[423017846,1779753041000,-151.0,0.00022381,2]
[423017844,1779753041000,-151.0,0.00020839,2]
[423017850,1779753041000,-468.49254296,0.00025784,2]
[423017851,1779753041000,-915.30184507,0.00025784,2]
[423017853,1779753041000,-480.53080747,0.00025784,2]
[423017855,1779753041000,-11075.70043285,0.00025784,2]
[423017852,1779753041000,-3929.22149816,0.00025784,2]
[423017856,1779753041000,-1824.17217144,0.00025784,2]
[423017854,1779753041000,-535.94538832,0.00025784,2]
[423017849,1779753041000,-258.27263183,0.00025784,2]
[423017863,1779753043000,-12688.68757952,0.00025784,2]
[423017867,1779753046000,-3636.0,0.00020763,2]
[423017869,1779753046000,-244.6,0.00024658,2]
[423017868,1779753046000,-3636.0,0.00023763,2]
[423017873,1779753046000,-244.6,0.00025115,30]
[423017872,1779753046000,-500.0,0.00025082,2]
[423017871,1779753046000,-165.84217181,0.00024886,7]
[423017874,1779753046000,-244.6,0.00025343,2]
[423017870,1779753046000,-78.75782819,0.00024886,7]
[423017875,1779753046000,-244.6,0.00025572,7]
[423017878,1779753046000,-2304.35819675,0.00025784,2]
[423017879,1779753046000,-38.86605448,0.000258,30]
[423017877,1779753046000,-2406.32662236,0.00025784,2]
[423017881,1779753046000,-191.21375989,0.000258,30]
[423017880,1779753046000,-14.52018563,0.000258,30]
[423017883,1779753046000,-129.78557173,0.00026203,3]
[423017882,1779753046000,-244.6,0.00026029,2]
[423017876,1779753046000,-500.0,0.00025643,2]
[423017891,1779753776000,190.33379237,0.00016011,120]
[423017916,1779754231000,-300.0,0.00013839,2]
[423017912,1779754231000,-600.0,0.00013839,2]
[423017913,1779754231000,-600.0,0.00013839,2]
[423017908,1779754231000,-2500.0,0.00013839,2]
[423017911,1779754231000,-600.0,0.00013839,2]
[423017910,1779754231000,-206.30061219,0.00013839,2]
[423017914,1779754231000,-600.0,0.00013839,2]
[423017909,1779754231000,-150.0,0.00013839,2]
[423017904,1779754231000,-2500.0,0.00013839,2]
[423017905,1779754231000,-2500.0,0.00013839,2]
[423017915,1779754231000,-600.0,0.00013839,2]
[423017901,1779754231000,-250.0,0.00013237,2]
[423017900,1779754231000,-500.0,0.00013237,2]
[423017899,1779754231000,-158.3,0.00012033,2]
[423017902,1779754231000,-150.0,0.00013838,2]
[423017903,1779754231000,-1200.0,0.00013838,2]
[423017907,1779754231000,-2500.0,0.00013839,2]
[423017917,1779754231000,-300.0,0.00013839,2]
[423017906,1779754231000,-2500.0,0.00013839,2]
[423017919,1779754231000,-300.0,0.00013839,2]
[423017918,1779754231000,-300.0,0.00013839,2]
[423017936,1779754231000,-4311.1042238,0.00014753,2]
[423017935,1779754231000,-5891.65125703,0.00014753,2]
[423017933,1779754231000,-503.927121,0.00014753,2]
[423017932,1779754231000,-6625.93370641,0.00014753,2]
[423017930,1779754231000,-495.37905734,0.00014753,2]
[423017931,1779754231000,-1991.4070198,0.00014753,2]
[423017923,1779754231000,-348.70492373,0.000147,2]
[423017934,1779754231000,-8173.23656239,0.00014753,2]
[423017925,1779754231000,-1833.51726259,0.00014753,2]
[423017928,1779754231000,-749.6440699,0.00014753,2]
[423017920,1779754231000,-300.0,0.00013839,2]
[423017929,1779754231000,-1497.03480659,0.00014753,2]
[423017921,1779754231000,-250.0,0.00014,2]
[423017927,1779754231000,-454.02947525,0.00014753,2]
[423017922,1779754231000,-158.3,0.0001444,2]
[423017924,1779754231000,-42294.57253741,0.00014753,2]
[423017926,1779754231000,-1564.62421589,0.00014753,2]
[423017943,1779754233000,-3564.56946572,0.00014753,2]
[423017937,1779754233000,-474.47781278,0.00014753,2]
[423017938,1779754233000,-354.35040988,0.00014753,2]
[423017940,1779754233000,-1369.51623453,0.00014753,2]
[423017942,1779754233000,-1855.39247416,0.00014753,2]
[423017947,1779754233000,-1050.20705502,0.00014753,2]
[423017944,1779754233000,-5535.49871986,0.00014753,2]
[423017946,1779754233000,-24759.70485867,0.00014753,2]
[423017941,1779754233000,-4639.39429941,0.00014753,2]
[423017945,1779754233000,-1898.12028,0.00014753,2]
[423017939,1779754233000,-7003.82032798,0.00014753,2]
[423017948,1779754234000,-7047.96809422,0.00014753,2]
[423017956,1779754237000,-747.38299981,0.000148,5]
[423017955,1779754237000,-407.86461,0.000148,5]
[423017954,1779754237000,-680.85289198,0.000148,5]
[423017953,1779754237000,-19494.57265237,0.00014753,2]
[423017967,1779754239000,-428.53781818,0.000148,5]
[423017968,1779754240000,-503.33128176,0.000148,5]
[423017969,1779754240000,-932.03039827,0.000148,5]
[423017972,1779754240000,-902.65302674,0.00014853,2]
[423017971,1779754240000,-301.87915129,0.00014853,2]
[423017970,1779754240000,-941.39137081,0.00014853,2]
[423017976,1779754242000,-7500.0,0.000149,5]
[423017975,1779754242000,-519.22054807,0.00014853,2]
[423017974,1779754242000,-4300.0,0.00014853,2]
[423018017,1779754243000,-151.0,0.00019178,2]
[423018016,1779754243000,-151.0,0.00019178,2]
[423018018,1779754243000,-151.0,0.00019178,2]
[423018020,1779754243000,-158.3,0.00019253,2]
[423018015,1779754243000,-736.38166391,0.00019031,2]
[423018014,1779754243000,-169.77702594,0.00019,2]
[423018019,1779754243000,-151.0,0.00019178,2]
[423018012,1779754243000,-596.4,0.0001841,2]
[423018010,1779754243000,-25772.56,0.00018356,2]
[423018011,1779754243000,-167.26099671,0.000184,2]
[423018009,1779754243000,-167.26099671,0.000182,2]
[423018013,1779754243000,-163.50760692,0.00019,2]
[423018021,1779754243000,-463.0,0.00019282,5]
[423018022,1779754243000,-153.0,0.0002,2]
[423018024,1779754243000,-157.0,0.0002,2]
[423018027,1779754243000,-152.0,0.0002,2]
[423018026,1779754243000,-400.0,0.0002,2]
[423018007,1779754243000,-167.26099671,0.00018,2]
[423018025,1779754243000,-507.0,0.0002,2]
[423018028,1779754243000,-1074.0,0.0002,2]
[423018029,1779754243000,-188.0,0.0002,2]
[423018030,1779754243000,-348.70492366,0.00020178,2]
[423018032,1779754243000,-151.0,0.00020517,2]
[423018031,1779754243000,-596.4,0.00020381,2]
[423018033,1779754243000,-1734.62772924,0.00020517,2]
[423018034,1779754243000,-200.0,0.00020517,2]
[423018023,1779754243000,-506.0,0.0002,2]
[423018005,1779754243000,-162.53,0.00017665,2]
[423017986,1779754243000,-5113.58631663,0.00015299,2]
[423018008,1779754243000,-350.0,0.00018,2]
[423017978,1779754243000,-10263.085,0.00015199,2]
[423017980,1779754243000,-1733.8773,0.000152,2]
[423017979,1779754243000,-414.90979557,0.000152,2]
[423017977,1779754243000,-181.0,0.00014959,2]
[423017982,1779754243000,-200.0,0.00015291,2]
[423017983,1779754243000,-170.256,0.00015291,2]
[423017981,1779754243000,-1680.0,0.00015221,2]
[423017984,1779754243000,-1407.936,0.00015291,2]
[423017985,1779754243000,-500.0,0.00015299,2]
[423017987,1779754243000,-500.0,0.00015299,2]
[423017991,1779754243000,-215.38528485,0.00015331,2]
[423017988,1779754243000,-500.0,0.00015299,2]
[423017990,1779754243000,-281.25967426,0.000153,2]
[423017989,1779754243000,-500.0,0.00015299,2]
[423017992,1779754243000,-6288.28170191,0.000154,2]
[423017994,1779754243000,-500.0,0.00015486,2]
[423017996,1779754243000,-8970.0,0.00015745,2]
[423017995,1779754243000,-736.38166395,0.00015645,2]
[423017993,1779754243000,-176.50463495,0.00015485,2]
[423017997,1779754243000,-300.0,0.00016,2]
[423017998,1779754243000,-596.4,0.00016438,2]
[423017999,1779754243000,-195.31,0.00016587,2]
[423018001,1779754243000,-168.12,0.00016712,2]
[423018006,1779754243000,-414.90979551,0.00017883,2]
[423018003,1779754243000,-2316.0,0.00017416,2]
[423018002,1779754243000,-158.3,0.00016847,2]
[423018000,1779754243000,-175.59,0.00016677,2]
[423018004,1779754243000,-348.70492366,0.00017439,2]
[423018039,1779754243000,-198.97225456,0.00020517,2]
[423018035,1779754243000,-151.0,0.00020517,2]
[423018037,1779754243000,-191.87295522,0.00020517,2]
[423018072,1779754243000,-500.0,0.00020517,2]
[423018073,1779754243000,-151.0,0.00020517,2]
[423018071,1779754243000,-151.0,0.00020517,2]
[423018079,1779754243000,-151.0,0.00020517,2]
[423018076,1779754243000,-151.0,0.00020517,2]
[423018078,1779754243000,-151.0,0.00020517,2]
[423018074,1779754243000,-500.0,0.00020517,2]
[423018077,1779754243000,-500.0,0.00020517,2]
[423018075,1779754243000,-151.0,0.00020517,2]
[423018080,1779754243000,-151.0,0.00020517,2]
[423018082,1779754243000,-151.0,0.00020517,2]
[423018081,1779754243000,-151.0,0.00020517,2]
[423018083,1779754243000,-151.0,0.00020517,2]
[423018085,1779754243000,-151.0,0.00020517,2]
[423018086,1779754243000,-151.0,0.00020517,2]
[423018084,1779754243000,-151.0,0.00020517,2]
[423018087,1779754243000,-151.0,0.00020517,2]
[423018091,1779754243000,-151.0,0.00020762,2]
[423018089,1779754243000,-167.65961344,0.0002058,2]
[423018093,1779754243000,-519.0,0.00020763,2]
[423018090,1779754243000,-151.0,0.00020762,2]
[423018092,1779754243000,-626.0,0.00020763,2]
[423018088,1779754243000,-414.90979551,0.00020566,2]
[423018095,1779754243000,-6061.0,0.00020763,2]
[423018094,1779754243000,-3636.0,0.00020763,2]
[423018096,1779754243000,-11300.0,0.000209,7]
[423018097,1779754243000,-153.0,0.00021,2]
[423018070,1779754243000,-151.0,0.00020517,2]
[423018068,1779754243000,-151.0,0.00020517,2]
[423018036,1779754243000,-185.02695778,0.00020517,2]
[423018067,1779754243000,-500.0,0.00020517,2]
[423018069,1779754243000,-500.0,0.00020517,2]
[423018041,1779754243000,-500.0,0.00020517,2]
[423018038,1779754243000,-151.0,0.00020517,2]
[423018044,1779754243000,-500.0,0.00020517,2]
[423018042,1779754243000,-151.0,0.00020517,2]
[423018040,1779754243000,-151.0,0.00020517,2]
[423018043,1779754243000,-235.04759492,0.00020517,2]
[423018046,1779754243000,-151.0,0.00020517,2]
[423018047,1779754243000,-500.0,0.00020517,2]
[423018048,1779754243000,-151.0,0.00020517,2]
[423018055,1779754243000,-151.0,0.00020517,2]
[423018050,1779754243000,-500.0,0.00020517,2]
[423018049,1779754243000,-151.0,0.00020517,2]
[423018045,1779754243000,-151.0,0.00020517,2]
[423018054,1779754243000,-500.0,0.00020517,2]
[423018064,1779754243000,-500.0,0.00020517,2]
[423018053,1779754243000,-151.0,0.00020517,2]
[423018063,1779754243000,-151.0,0.00020517,2]
[423018060,1779754243000,-500.0,0.00020517,2]
[423018061,1779754243000,-151.0,0.00020517,2]
[423018065,1779754243000,-151.0,0.00020517,2]
[423018066,1779754243000,-151.0,0.00020517,2]
[423018062,1779754243000,-151.0,0.00020517,2]
[423018059,1779754243000,-151.0,0.00020517,2]
[423018056,1779754243000,-151.0,0.00020517,2]
[423018057,1779754243000,-500.0,0.00020517,2]
[423018058,1779754243000,-151.0,0.00020517,2]
[423018051,1779754243000,-151.0,0.00020517,2]
[423018123,1779754244000,-348.70492366,0.00022916,2]
[423018118,1779754244000,-5231.56,0.00022,2]
[423018120,1779754244000,-596.4,0.00022353,2]
[423018121,1779754244000,-736.38166391,0.00022418,2]
[423018122,1779754244000,-2005.9555727,0.00022709,2]
[423018119,1779754244000,-1934.38338736,0.00022161,2]
[423018126,1779754244000,-507.0,0.00023,2]
[423018132,1779754244000,-519.0,0.00023763,2]
[423018124,1779754244000,-153.0,0.00023,2]
[423018125,1779754244000,-506.0,0.00023,2]
[423018130,1779754244000,-2080.17592889,0.00023257,2]
[423018129,1779754244000,-414.90979551,0.00023249,2]
[423018133,1779754244000,-3636.0,0.00023763,2]
[423018131,1779754244000,-626.0,0.00023763,2]
[423018117,1779754244000,-188.0,0.00022,2]
[423018127,1779754244000,-1074.0,0.00023,2]
[423018116,1779754244000,-1074.0,0.00022,2]
[423018104,1779754244000,-200.0,0.00021065,2]
[423018114,1779754244000,-507.0,0.00022,2]
[423018099,1779754244000,-507.0,0.00021,2]
[423018098,1779754244000,-506.0,0.00021,2]
[423018101,1779754244000,-1074.0,0.00021,2]
[423018100,1779754244000,-164.0,0.00021,2]
[423018140,1779754244000,-1074.0,0.00024,2]
[423018102,1779754244000,-188.0,0.00021,2]
[423018103,1779754244000,-1798.80895522,0.00021065,2]
[423018110,1779754244000,-5000.0,0.00021918,2]
[423018106,1779754244000,-1865.36488656,0.00021613,2]
[423018107,1779754244000,-151.0,0.00021613,2]
[423018109,1779754244000,-500.0,0.000219,2]
[423018113,1779754244000,-506.0,0.00022,2]
[423018108,1779754244000,-158.3,0.0002166,2]
[423018115,1779754244000,-450.0,0.00022,2]
[423018112,1779754244000,-153.0,0.00022,2]
[423018111,1779754244000,-151.0,0.00021918,2]
[423018105,1779754244000,-176.50463494,0.00021451,2]
[423018139,1779754244000,-500.0,0.00024,2]
[423018128,1779754244000,-188.0,0.00023,2]
[423018135,1779754244000,-2157.14243826,0.00023805,2]
[423018157,1779754244000,-1084.0,0.00025,2]
[423018161,1779754244000,-494.93,0.00025,2]
[423018160,1779754244000,-494.93,0.00025,2]
[423018159,1779754244000,-494.93,0.00025,2]
[423018163,1779754244000,-578.20924308,0.00025343,2]
[423018164,1779754244000,-218.43768837,0.00025343,2]
[423018165,1779754244000,-174.61919141,0.00025343,2]
[423018166,1779754244000,-601.3376128,0.00025343,2]
[423018167,1779754244000,-2405.55389863,0.00025449,2]
[423018170,1779754244000,-348.70492366,0.00025655,2]
[423018168,1779754244000,-1000.0,0.000256,2]
[423018172,1779754244000,-151.0,0.00019178,2]
[423018169,1779754244000,-504.0,0.00025648,2]
[423018171,1779754244000,-229.27422161,0.00025671,5]
[423018173,1779754244000,-310.72577839,0.00025671,5]
[423018174,1779754244000,-363.27422161,0.00025671,5]
[423018141,1779754244000,-188.0,0.00024,2]
[423018158,1779754244000,-202.0,0.00025,2]
[423018162,1779754244000,-504.0,0.00025082,2]
[423018143,1779754244000,-596.4,0.00024324,2]
[423018155,1779754244000,-520.0,0.00025,2]
[423018136,1779754244000,-153.0,0.00024,2]
[423018134,1779754244000,-5855.065,0.00023763,2]
[423018138,1779754244000,-507.0,0.00024,2]
[423018137,1779754244000,-506.0,0.00024,2]
[423018142,1779754244000,-158.3,0.00024067,2]
[423018156,1779754244000,-525.0,0.00025,2]
[423018144,1779754244000,-2236.95670847,0.00024353,2]
[423018149,1779754244000,-2319.72410669,0.00024901,2]
[423018146,1779754244000,-1000.0,0.00024658,2]
[423018147,1779754244000,-151.48,0.00024658,2]
[423018145,1779754244000,-539.3,0.00024658,2]
[423018148,1779754244000,-151.51,0.00024658,2]
[423018152,1779754244000,-151.48,0.00024992,7]
[423018151,1779754244000,-151.44,0.00024992,7]
[423018153,1779754244000,-151.51,0.00024992,7]
[423018154,1779754244000,-163.0,0.00025,2]
[423018150,1779754244000,-3334.26,0.00024908,7]
[423018180,1779754245000,-151.0,0.00019178,2]
[423018177,1779754245000,-151.0,0.00019178,2]
[423018176,1779754245000,-151.0,0.00019178,2]
[423018178,1779754245000,-151.0,0.00019178,2]
[423018179,1779754245000,-151.0,0.00019178,2]
[423018181,1779754245000,-151.0,0.00019178,2]
[423018186,1779754245000,-414.90979551,0.00025932,2]
[423018185,1779754245000,-181.08010149,0.00025891,2]
[423018184,1779754245000,-736.38166391,0.00025804,2]
[423018187,1779754245000,-1263.48561051,0.00025997,2]
[423018183,1779754245000,-73.72577839,0.00025671,5]
[423018182,1779754245000,-925.0,0.00025671,10]
[423018196,1779754246000,-273.271897,0.00026384,2]
[423018199,1779754246000,-187.78006524,0.00026439,2]
[423018195,1779754246000,-273.271897,0.00026384,2]
[423018194,1779754246000,-596.4,0.00026296,2]
[423018205,1779754246000,-3636.0,0.00026763,2]
[423018204,1779754246000,-519.0,0.00026763,2]
[423018193,1779754246000,-504.0,0.00026215,3]
[423018197,1779754246000,-273.271897,0.00026384,2]
[423018192,1779754246000,-262.32788237,0.00026,2]
[423018189,1779754246000,-418.0,0.00020817,2]
[423018191,1779754246000,-287.67211763,0.00026,2]
[423018188,1779754246000,-151.0,0.00019178,2]
[423018190,1779754246000,-1231.07378237,0.00025997,2]
[423018203,1779754246000,-151.0,0.00026762,2]
[423018198,1779754246000,-273.271897,0.00026384,2]
[423018207,1779754246000,-275.23023582,0.00026987,2]
[423018206,1779754246000,-504.0,0.00026781,3]
[423018208,1779754246000,-2142.466222,0.00027,2]
[423018209,1779754246000,-494.93,0.00027083,2]
[423018211,1779754246000,-504.0,0.00027347,4]
[423018210,1779754246000,-2682.57183977,0.00027093,2]
[423018214,1779754246000,-273.271897,0.00027397,2]
[423018213,1779754246000,-273.271897,0.00027397,2]
[423018217,1779754246000,-300.0,0.00027397,2]
[423018212,1779754246000,-273.271897,0.00027397,2]
[423018215,1779754246000,-273.271897,0.00027397,2]
[423018216,1779754246000,-1500.0,0.00027397,2]
[423018218,1779754246000,-539.3,0.00027397,2]
[423018220,1779754246000,-6425.02552838,0.00027397,10]
[423018201,1779754246000,-2586.85809042,0.00026545,2]
[423018219,1779754246000,-14834.01,0.00027397,10]
[423018233,1779754704000,348.62769801,0.000114,2]
[423018237,1779755201000,-124.98485462,0.00014559,2]
[423018236,1779755201000,-223.64573251,0.00014502,2]
[423018238,1779755223000,4603.99,0.00027945,120]
[423018239,1779755342000,1000.0,0.00027944,120]
[423018257,1779755431000,-4168.5776,0.00014653,2]
[423018253,1779755431000,-1200.0,0.0001445,2]
[423018256,1779755431000,-215.38528485,0.00014586,2]
[423018255,1779755431000,-368.96162336,0.00014451,2]
[423018254,1779755431000,-2500.0,0.00014451,2]
[423018252,1779755431000,-300.0,0.00014363,2]
[423018251,1779755431000,-300.0,0.00014363,2]
[423018248,1779755431000,-300.0,0.00014235,2]
[423018247,1779755431000,-300.0,0.00014119,2]
[423018249,1779755431000,-295.82351751,0.00014235,2]
[423018245,1779755431000,-179.98,0.00013973,2]
[423018246,1779755431000,-300.0,0.00014046,2]
[423018259,1779755431000,-5149.9126,0.00014653,2]
[423018261,1779755431000,-174.35246183,0.00014653,2]
[423018250,1779755431000,-2500.0,0.00014266,2]
[423018260,1779755431000,-207.4548978,0.00014653,2]
[423018274,1779755431000,-353.56245205,0.00014752,2]
[423018258,1779755431000,-4118.3169,0.00014653,2]
[423018275,1779755431000,-500.0,0.00014752,2]
[423018273,1779755431000,-500.0,0.00014752,2]
[423018271,1779755431000,-500.0,0.00014752,2]
[423018266,1779755431000,-496.30445522,0.00014752,2]
[423018267,1779755431000,-500.0,0.00014752,2]
[423018272,1779755431000,-157.94162027,0.00014752,2]
[423018269,1779755431000,-543.64957386,0.00014752,2]
[423018268,1779755431000,-500.0,0.00014752,2]
[423018265,1779755431000,-500.0,0.00014752,2]
[423018264,1779755431000,-3000.0,0.000147,5]
[423018263,1779755431000,-1126.349,0.00014683,2]
[423018262,1779755431000,-446.81211241,0.00014653,2]
[423018270,1779755431000,-500.0,0.00014752,2]
[423018299,1779755432000,-500.0,0.00014752,2]